fUST/lending_fUST_20251022
["ID","MTS","AMOUNT","RATE_DAILY","PERIOD"]
[392061075,1761133839491,-151.0,0.00025678,2]
[392061077,1761133839500,-151.0,0.00025678,2]
[392061079,1761133839510,-151.0,0.00025678,2]
[392061081,1761133839520,-151.0,0.00025678,2]
[392061083,1761133839532,-221.60135417,0.00025678,2]
[392061085,1761133839541,-241.46,0.00025683,3]
[392061087,1761133839550,-724.42,0.00025683,3]
[392061089,1761133839560,-965.84,0.00025692,3]
[392061092,1761133839570,-482.92,0.00025692,3]
[392061094,1761133839580,-17179.14,0.000257,7]
[392061096,1761133839590,-403.14601822,0.000257,7]
[392061098,1761133839599,-500.0,0.00025702,2]
[392061100,1761133839608,-500.0,0.00025702,2]
[392061102,1761133839619,-300.0,0.00025703,20]
[392061105,1761133839631,-300.0,0.00025703,20]
[392061107,1761133839641,-300.0,0.00025703,20]
[392061109,1761133839651,-81120.1607858,0.00025711,2]
[392061111,1761133839660,-1001.89352356,0.00025721,2]
[392061113,1761133839670,-506.1230814,0.00025721,2]
[392061116,1761133839679,-1000.0,0.00025721,2]
[392061118,1761133839689,-1000.0,0.00025721,2]
[392061121,1761133839698,-1000.0,0.00025721,2]
[392061124,1761133839707,-1000.0,0.00025721,2]
[392061126,1761133839716,-502.14047218,0.00025721,2]
[392061129,1761133839726,-1002.70253193,0.00025721,2]
[392061132,1761133839735,-1000.0,0.00025721,2]
[392061135,1761133839744,-1000.0,0.00025721,2]
[392061137,1761133839753,-502.46996771,0.00025721,2]
[392061140,1761133839763,-500.0,0.00025879,2]
[392061143,1761133839772,-5084.211938,0.00025921,2]
[392061145,1761133839781,-162240.321572,0.0002598,2]
[392061148,1761133839790,-201.41167318,0.0002598,2]
[392061150,1761133839799,-288.5955815,0.00026037,2]
[392061153,1761133839808,-500.0,0.00026153,2]
[392061156,1761133839817,-643.52635244,0.00026168,2]
[392061157,1761133839826,-500.0,0.00026168,2]
[392061159,1761133839835,-1500.0,0.00026168,2]
[392061161,1761133839844,-1500.0,0.00026168,2]
[392061163,1761133839853,-1500.0,0.00026168,2]
[392061165,1761133839863,-1500.0,0.00026168,2]
[392061166,1761133839871,-1500.0,0.00026168,2]
[392061168,1761133839880,-1000.0,0.00026221,2]
[392061169,1761133839890,-196.34218594,0.00026221,2]
[392061170,1761133839899,-597.77637791,0.00026221,2]
[392061171,1761133839909,-1000.0,0.00026268,2]
[392061172,1761133839919,-501.10601427,0.00026268,2]
[392061173,1761133839928,-504.35604818,0.00026268,2]
[392061174,1761133839937,-1500.0,0.00026268,2]
[392061175,1761133839946,-1500.0,0.00026268,2]
[392061177,1761133839956,-957.30267343,0.00026268,2]
[392061179,1761133839965,-500.0,0.0002632,2]
[392061181,1761133839974,-464.94620931,0.00026399,2]
[392061183,1761133839983,-500.0,0.00026427,2]
[392061185,1761133839992,-1157.0,0.00026502,2]
[392061188,1761133840003,-420.0,0.00026502,2]
[392061189,1761133840012,-420.0,0.00026502,2]
[392061192,1761133840022,-160.0,0.00026557,2]
[392061194,1761133840031,-1680.0,0.00026623,2]
[392061196,1761133840040,-500.0,0.00026701,2]
[392061198,1761133840049,-2000.0,0.00026716,2]
[392061199,1761133840058,-2000.0,0.00026716,2]
[392061202,1761133840069,-1000.0,0.00026716,2]
[392061204,1761133840079,-2000.0,0.00026716,2]
[392061206,1761133840089,-1525.74586575,0.00026716,2]
[392061208,1761133840099,-2085.41,0.0002672,2]
[392061210,1761133840109,-210.01963373,0.00026737,2]
[392061220,1761133840195,-501.21083915,0.00026768,2]
[392061222,1761133840204,-1029.62312454,0.00026816,2]
[392061224,1761133840213,-2000.0,0.00026816,2]
[392061226,1761133840222,-500.0,0.00026889,2]
[392061228,1761133840231,-500.0,0.00026889,2]
[392061230,1761133840240,-768.372972,0.000269,20]
[392061232,1761133840250,-348.854513,0.000269,20]
[392061234,1761133840258,-500.0,0.00026975,2]
[392061235,1761133840268,-326.79205552,0.00027037,2]
[392061238,1761133840277,-482.92,0.00027053,3]
[392061240,1761133840286,-1931.68,0.00027062,3]
[392061242,1761133840295,-965.84,0.00027062,3]
[392061244,1761133840304,-260.0,0.00027105,2]
[392061245,1761133840314,-500.0,0.0002724,2]
[392061248,1761133840324,-500.0,0.0002724,2]
[392061250,1761133840333,-500.0,0.00027241,2]
[392061252,1761133840342,-500.0,0.00027241,2]
[392061254,1761133840351,-150.9846618,0.00027241,2]
[392061256,1761133840359,-500.0,0.00027242,2]
[392061258,1761133840368,-500.0,0.00027242,2]
[392061260,1761133840377,-415.15959798,0.00027248,2]
[392061262,1761133840386,-2500.0,0.00027264,2]
[392061264,1761133840395,-2500.0,0.00027264,2]
[392061266,1761133840404,-2500.0,0.00027264,2]
[392061268,1761133840413,-500.0,0.00027272,2]
[392061270,1761133840422,-165.62321695,0.00027273,2]
[392061271,1761133840431,-500.48425532,0.00027273,2]
[392061274,1761133840441,-502.14829062,0.00027273,2]
[392061276,1761133840456,-500.0,0.00027273,2]
[392061278,1761133840465,-504.28281437,0.00027273,2]
[392061280,1761133840473,-501.9168495,0.00027273,2]
[392061281,1761133840482,-500.39457438,0.00027273,2]
[392061283,1761133840494,-500.85750236,0.00027273,2]
[392061285,1761133840504,-500.0,0.00027273,2]
[392061288,1761133840513,-500.0,0.00027273,2]
[392061289,1761133840526,-2500.0,0.00027364,2]
[392061291,1761133840535,-1460.14,0.000274,7]
[392061293,1761133840545,-3309.08,0.000274,2]
[392061295,1761133840553,-500.0,0.00027498,7]
[392061297,1761133840563,-528.77638099,0.00027499,7]
[392061299,1761133840572,-360.0,0.00027653,2]
[392061301,1761133840581,-199.0,0.00027671,7]
[392061304,1761133840591,-600.0,0.00027786,30]
[392061306,1761133840600,-2531.31822136,0.00027812,5]
[392061307,1761133840609,-1500.0,0.00027812,5]
[392061310,1761133840619,-1000.0,0.00027821,5]
[392061311,1761133840628,-17179.14,0.000279,7]
[392061314,1761133840637,-768.372972,0.00027909,20]
[392061316,1761133840647,-348.854513,0.00027909,20]
[392061318,1761133840656,-3000.0,0.00027912,5]
[392061320,1761133840665,-199.0,0.00027945,8]
[392061322,1761133840675,-4506.47267655,0.00028,2]
[392061324,1761133840683,-364.98852955,0.00028037,2]
[392061325,1761133840692,-460.0,0.00028201,2]
[392061328,1761133840702,-199.0,0.00028219,9]
[392061330,1761133840711,-500.0,0.00028368,5]
[392061332,1761133840720,-2398.31370747,0.00028424,2]
[392061334,1761133840729,-3500.0,0.0002846,5]
[392061336,1761133840740,-199.0,0.00028493,10]
[392061338,1761133840749,-376.59,0.00028658,7]
[392061340,1761133840758,-183.0,0.00028727,2]
[392061341,1761133840767,-587.0,0.00028727,2]
[392061343,1761133840776,-560.0,0.00028749,2]
[392061345,1761133840785,-500.0,0.00028766,7]
[392061347,1761133840794,-375.72,0.00028767,2]
[392061350,1761133840803,-375.72,0.00028767,2]
[392061352,1761133840813,-375.72,0.00028767,2]
[392061353,1761133840821,-375.72,0.00028767,2]
[392061355,1761133840831,-375.72,0.00028767,2]
[392061357,1761133840840,-375.72,0.00028767,2]
[392061359,1761133840849,-375.72,0.00028767,2]
[392061361,1761133840858,-375.72,0.00028767,2]
[392061363,1761133840868,-375.72,0.00028767,2]
[392061366,1761133840877,-375.72,0.00028767,2]
[392061367,1761133840886,-375.72,0.00028767,2]
[392061369,1761133840895,-375.72,0.00028767,2]
[392061371,1761133840905,-375.72,0.00028767,2]
[392061373,1761133840915,-375.72,0.00028767,2]
[392061376,1761133840924,-375.72,0.00028767,2]
[392061378,1761133840933,-375.72,0.00028767,2]
[392061380,1761133840942,-375.72,0.00028767,2]
[392061382,1761133840951,-375.72,0.00028767,2]
[392061384,1761133840960,-375.72,0.00028767,2]
[392061385,1761133840969,-375.72,0.00028767,2]
[392061388,1761133840979,-375.72,0.00028767,2]
[392061390,1761133840988,-375.72,0.00028767,2]
[392061392,1761133840998,-375.72,0.00028767,2]
[392061393,1761133841009,-375.84309408,0.00028767,2]
[392061396,1761133841018,-199.0,0.00028767,11]
[392061397,1761133841027,-768.372972,0.00028918,20]
[392061400,1761133841036,-348.854513,0.00028918,20]
[392061402,1761133841046,-2351.0,0.0002899,2]
[392061404,1761133841055,-4000.0,0.00029008,5]
[392061406,1761133841064,-403.18500357,0.00029037,2]
[392061408,1761133841073,-504.3359731,0.00029039,2]
[392061410,1761133841082,-1000.0,0.00029039,2]
[392061411,1761133841091,-1000.0,0.00029039,2]
[392061413,1761133841100,-1000.0,0.00029039,2]
[392061416,1761133841109,-1000.0,0.00029039,2]
[392061418,1761133841118,-1000.0,0.00029039,2]
[392061420,1761133841126,-976.25709614,0.00029039,2]
[392061422,1761133841136,-199.0,0.00029041,12]
[392061423,1761133841145,-150.0,0.00029164,30]
[392061425,1761133841154,-423.448,0.00029191,22]
[392061427,1761133841163,-177.87051647,0.00029191,22]
[392061429,1761133841172,-1460.14,0.000292,7]
[392061431,1761133841180,-3309.08,0.000292,2]
[392061433,1761133841189,-660.0,0.00029297,2]
[392061435,1761133841198,-199.0,0.00029315,13]
[392061438,1761133841208,-3016.77699195,0.00029556,5]
[392061439,1761133841218,-199.0,0.00029589,14]
[392061442,1761133841228,-760.0,0.00029845,2]
[392061444,1761133841238,-199.0,0.00029863,15]
[392061445,1761133841247,-500.0,0.000299,15]
[392061447,1761133841257,-500.0,0.00029924,7]
[392061449,1761133841266,-768.372972,0.00029926,20]
[392061452,1761133841275,-348.854513,0.00029926,20]
[392061453,1761133841285,-179.464874,0.00029926,20]
[392061455,1761133841294,-166.235,0.0003,2]
[392061457,1761133841303,-17179.14,0.0003,7]
[392061460,1761133841312,-441.38147759,0.00030037,2]
[392061461,1761133841322,-199.0,0.00030136,16]
[392061463,1761133841332,-5084.21193798,0.00030277,2]
[392061465,1761133841340,-860.0,0.00030393,2]
[392061467,1761133841350,-199.0,0.0003041,17]
[392061469,1761133841360,-160.0,0.00030421,2]
[392061472,1761133841370,-500.0,0.00030448,15]
[392061474,1761133841379,-720.0,0.00030564,30]
[392061476,1761133841388,-161.0,0.000306,120]
[392061478,1761133841397,-199.0,0.00030684,18]
[392061479,1761133841406,-768.372972,0.00030935,20]
[392061482,1761133841416,-161.720033,0.00030935,20]
[392061484,1761133841426,-348.854513,0.00030935,20]
[392061485,1761133841434,-162.996765,0.00030935,20]
[392061488,1761133841443,-193.262004,0.00030935,20]
[392061490,1761133841454,-156.629309,0.00030935,20]
[392061492,1761133841464,-179.464874,0.00030935,20]
[392061494,1761133841477,-960.0,0.00030941,2]
[392061495,1761133841487,-5000.0,0.00030958,2]
[392061498,1761133841497,-199.0,0.00030958,19]
[392061499,1761133841508,-500.0,0.00030996,15]
[392061501,1761133841518,-479.57795161,0.00031037,2]
[392061504,1761133841528,-823.0,0.00031139,2]
[392061505,1761133841537,-1460.14,0.000312,7]
[392061508,1761133841549,-199.0,0.00031232,20]
[392061509,1761133841558,-3309.08,0.000314,2]
[392061511,1761133841568,-157.75919698,0.00031429,2]
[392061513,1761133841577,-1060.0,0.00031489,2]
[392061515,1761133841585,-199.0,0.00031506,21]
[392061517,1761133841595,-500.0,0.00031544,15]
[392061519,1761133841604,-3292.0,0.00031566,3]
[392061521,1761133841613,-500.0,0.0003158,7]
[392061523,1761133841621,-250.0,0.00031629,2]
[392061525,1761133841630,-505.2485941,0.0003165,5]
[392061527,1761133841640,-500.0,0.0003165,5]
[392061529,1761133841649,-387.03466343,0.0003165,5]
[392061531,1761133841659,-500.0,0.0003165,5]
[392061533,1761133841668,-768.372972,0.000317,2]
[392061535,1761133841677,-348.854513,0.000317,2]
[392061537,1761133841686,-199.0,0.0003178,22]
[392061539,1761133841695,-150.0,0.00031815,30]
[392061541,1761133841704,-364.3522739,0.00031876,2]
[392061543,1761133841713,-2398.31370747,0.0003191,2]
[392061545,1761133841721,-768.372972,0.00031988,2]
[392061547,1761133841730,-348.854513,0.00031988,2]
[392061549,1761133841739,-517.77442563,0.00032037,2]
[392061551,1761133841748,-780.0,0.00032037,2]
[392061553,1761133841758,-199.0,0.00032054,23]
[392061556,1761133841767,-500.0,0.00032092,15]
[392061557,1761133841776,-17179.14,0.000321,7]
[392061560,1761133841786,-507.94926773,0.00032198,5]
[392061561,1761133841795,-500.0,0.00032198,5]
[392061563,1761133841804,-768.372972,0.00032275,2]
[392061566,1761133841813,-348.854513,0.00032275,2]
[392061567,1761133841822,-500.0,0.0003228,7]
[392061569,1761133841831,-343.00813088,0.00032328,24]
[392061572,1761133841842,-179.67658215,0.00032341,9]
[392061574,1761133841851,-768.372972,0.00032562,2]
[392061576,1761133841860,-348.854513,0.00032562,2]
[392061585,1761133841940,-500.0,0.0003264,15]
[392061587,1761133841950,-152.51,0.00032718,15]
[392061589,1761133841959,-152.51,0.00032818,15]
[392061591,1761133841968,-768.372972,0.0003285,2]
[392061593,1761133841978,-348.854513,0.0003285,2]
[392061596,1761133841987,-193.262004,0.0003285,2]
[392061598,1761133841996,-156.629309,0.0003285,2]
[392061600,1761133842006,-179.464874,0.0003285,2]
[392061601,1761133842015,-2999.0,0.00032876,120]
[392061603,1761133842024,-152.51,0.00032918,60]
[392061606,1761133842034,-151.57,0.00032985,60]
[392061608,1761133842043,-152.51,0.00033018,60]
[392061609,1761133842051,-555.97089966,0.00033037,120]
[392061611,1761133842061,-151.57,0.00033085,60]
[392061614,1761133842070,-10351.8500863,0.00033088,30]
[392061616,1761133842079,-1460.14,0.000331,7]
[392061618,1761133842089,-3309.08,0.000331,14]
[392061620,1761133842098,-152.51,0.00033118,60]
[392061622,1761133842107,-151.57,0.00033185,60]
[392061624,1761133842116,-500.0,0.00033188,30]
[392061625,1761133842125,-152.51,0.00033218,60]
[392061627,1761133842135,-151.57,0.00033285,60]
[392061629,1761133842145,-152.51,0.00033318,60]
[392061631,1761133842154,-151.57,0.00033385,60]
[392061633,1761133842163,-152.51,0.00033418,60]
[392061636,1761133842172,-151.57,0.00033485,60]
[392061637,1761133842182,-152.51,0.00033518,60]
[392061639,1761133842191,-2999.0,0.00033561,120]
[392061641,1761133842200,-151.57,0.00033585,60]
[392061643,1761133842209,-152.51,0.00033618,60]
[392061646,1761133842220,-864.0,0.00033621,30]
[392061648,1761133842230,-151.57,0.00033685,60]
[392061649,1761133842239,-152.51,0.00033718,60]
[392061650,1761133842248,-500.0,0.00033729,7]
[392061651,1761133842257,-500.0,0.00033736,30]
[392061652,1761133842266,-1152.0,0.00033753,2]
[392061653,1761133842275,-151.57,0.00033785,60]
[392061654,1761133842284,-152.51,0.00033818,60]
[392061655,1761133842293,-1500.0,0.00033835,28]
[392061656,1761133842302,-151.57,0.00033885,60]
[392061657,1761133842311,-152.51,0.00033918,60]
[392061658,1761133842320,-151.57,0.00033985,60]
[392061659,1761133842329,-953.0,0.00034,2]
[392061660,1761133842338,-403.14601822,0.00034,30]
[392061661,1761133842347,-152.51,0.00034018,60]
[392061663,1761133842356,-594.16737368,0.00034037,120]
[392061665,1761133842366,-151.57,0.00034085,60]
[392061667,1761133842375,-1500.0,0.00034109,28]
[392061669,1761133842384,-152.51,0.00034118,60]
[392061671,1761133842393,-151.57,0.00034185,60]
[392061674,1761133842401,-152.51,0.00034218,60]
[392061676,1761133842410,-2999.0,0.00034246,120]
[392061678,1761133842419,-500.0,0.00034284,30]
[392061680,1761133842428,-151.57,0.00034285,60]
[392061682,1761133842437,-152.51,0.00034318,60]
[392061683,1761133842446,-4609.0,0.00034372,3]
[392061686,1761133842459,-1500.0,0.00034383,28]
[392061688,1761133842469,-151.57,0.00034385,60]
[392061690,1761133842478,-152.51,0.00034418,60]
[392061692,1761133842487,-150.0,0.00034466,30]
[392061694,1761133842496,-151.57,0.00034485,60]
[392061696,1761133842507,-152.51,0.00034518,60]
[392061697,1761133842516,-151.57,0.00034585,60]
[392061699,1761133842528,-768.372972,0.000346,60]
[392061701,1761133842538,-348.854513,0.000346,60]
[392061704,1761133842547,-1460.14,0.000346,7]
[392061706,1761133842556,-3309.08,0.000346,14]
[392061708,1761133842565,-152.51,0.00034618,60]
[392061710,1761133842575,-5084.21193798,0.00034633,2]
[392061711,1761133842585,-1564.79771143,0.00034657,28]
[392061713,1761133842594,-768.372972,0.00034674,10]
[392061716,1761133842604,-348.854513,0.00034674,10]
[392061718,1761133842613,-152.51,0.00034718,60]
[392061720,1761133842622,-152.51,0.00034818,60]
[392061722,1761133842631,-500.0,0.00034832,30]
[392061724,1761133842640,-152.51,0.00034918,60]
[392061728,1761133842649,-2999.0,0.00034931,120]
[392061731,1761133842658,-1218171.003668,0.00035,2]
[392061734,1761133842667,-417.15472785,0.00035,120]
[392061736,1761133842676,-160.0,0.00035,120]
[392061738,1761133842685,-160.0,0.00035,120]
[392061740,1761133842693,-403.14601822,0.00035,120]
[392061742,1761133842702,-152.51,0.00035018,60]
[392061744,1761133842711,-632.3638477,0.00035037,120]
[392061746,1761133842719,-152.51,0.00035118,60]
[392061747,1761133842730,-152.51,0.00035218,60]
[392061750,1761133842739,-152.51,0.00035318,60]
[392061751,1761133842748,-500.0,0.00035379,30]
[392061753,1761133842758,-2398.31370747,0.00035397,2]
[392061755,1761133842767,-152.51,0.00035418,60]
[392061757,1761133842776,-152.51,0.00035518,60]
[392061759,1761133842785,-205.15769069,0.00035561,2]
[392061761,1761133842794,-2999.0,0.00035616,120]
[392061763,1761133842803,-162.95558814,0.00035616,2]
[392061765,1761133842811,-152.51,0.00035618,60]
[392061767,1761133842820,-152.51,0.00035718,60]
[392061769,1761133842829,-151.0,0.000358,11]
[392061771,1761133842838,-152.51,0.00035818,60]
[392061773,1761133842847,-152.59,0.00035918,60]
[392061776,1761133842856,-500.0,0.00035927,30]
[392061778,1761133842865,-670.56032172,0.00036037,120]
[392061779,1761133842874,-1460.14,0.000361,7]
[392061781,1761133842883,-3309.08,0.000361,14]
[392061783,1761133842891,-166.235,0.00036134,5]
[392061786,1761133842902,-768.372972,0.00036162,60]
[392061788,1761133842911,-348.854513,0.00036162,60]
[392061789,1761133842920,-2999.0,0.00036301,120]
[392061791,1761133842929,-500.0,0.00036475,30]
[392061793,1761133842938,-1613.0,0.00036586,2]
[392061795,1761133842948,-403.14601822,0.00036868,2]
[392061797,1761133842957,-1000.0,0.00036983,30]
[392061799,1761133842966,-3003.44361491,0.00036986,120]
[392061801,1761133842975,-768.372972,0.00037006,10]
[392061803,1761133842984,-348.854513,0.00037006,10]
[392061805,1761133842992,-500.0,0.00037023,30]
[392061807,1761133843002,-708.75679575,0.00037037,120]
[392061809,1761133843010,-150.0,0.00037117,30]
[392061811,1761133843020,-161.0,0.000373,120]
[392061813,1761133843029,-17179.14,0.000373,14]
[392061815,1761133843038,-1744.0,0.00037427,3]
[392061817,1761133843048,-5000.0,0.00037458,4]
[392061820,1761133843057,-500.0,0.00037571,30]
[392061821,1761133843066,-768.372972,0.00037724,60]
[392061823,1761133843075,-348.854513,0.00037724,60]
[392061825,1761133843084,-234.71194861,0.00037753,120]
[392061827,1761133843093,-15509.95,0.000378,14]
[392061829,1761133843102,-746.95326977,0.00038037,120]
[392061831,1761133843111,-500.0,0.00038119,30]
[392061833,1761133843120,-500.0,0.00038357,30]
[392061835,1761133843129,-3309.08,0.000384,14]
[392061837,1761133843138,-160.0,0.00038588,3]
[392061840,1761133843148,-1460.14,0.000386,7]
[392061842,1761133843157,-500.0,0.00038667,30]
[392061843,1761133843166,-506.49602453,0.00038798,30]
[392061845,1761133843176,-634.522,0.00038815,2]
[392061847,1761133843185,-983.0,0.00038815,2]
[392061849,1761133843194,-2178.121,0.00038815,2]
[392061851,1761133843203,-230.112,0.00038815,2]
[392061854,1761133843212,-287.487,0.00038815,2]
[392061855,1761133843222,-187.147,0.00038815,2]
[392061857,1761133843231,-2398.31370747,0.00038884,2]
[392061859,1761133843239,-5084.21193798,0.00038988,2]
[392061861,1761133843248,-785.14974379,0.00039037,120]
[392061864,1761133843259,-500.0,0.00039215,30]
[392061867,1761133843267,-768.372972,0.00039286,60]
[392061869,1761133843277,-348.854513,0.00039286,60]
[392061871,1761133843285,-768.372972,0.00039337,10]
[392061873,1761133843294,-348.854513,0.00039337,10]
[392061875,1761133843304,-500.0,0.00039476,30]
[392061878,1761133843314,-2258.0,0.00039657,5]
[392061880,1761133843324,-153.0,0.00039668,30]
[392061882,1761133843333,-153.0,0.00039668,30]
[392061883,1761133843342,-153.0,0.00039668,30]
[392061886,1761133843352,-153.0,0.00039668,30]
[392061888,1761133843362,-153.0,0.00039668,30]
[392061890,1761133843372,-153.0,0.00039668,30]
[392061892,1761133843381,-153.0,0.00039668,30]
[392061894,1761133843390,-153.0,0.00039668,30]
[392061896,1761133843400,-153.0,0.00039668,30]
[392061898,1761133843409,-153.0,0.00039668,30]
[392061900,1761133843418,-500.0,0.00039763,30]
[392061902,1761133843428,-150.0,0.00039769,30]
[392061904,1761133843437,-3477.0,0.00039784,120]
[392061906,1761133843447,-201.0,0.00039789,2]
[392061908,1761133843461,-190.24328602,0.00039806,2]
[392061918,1761133843542,-730.74739686,0.00039806,2]
[392061920,1761133843552,-1315.34531435,0.00039806,2]
[392061922,1761133843561,-2338.39166996,0.00039806,2]
[392061924,1761133843570,-1593.0,0.0004,14]
[392061926,1761133843580,-201.0,0.0004001,2]
[392061928,1761133843589,-3477.0,0.00040031,2]
[392061930,1761133843598,-823.34621781,0.00040037,120]
[392061932,1761133843607,-17179.14,0.000401,14]
[392061934,1761133843617,-493.24598972,0.00040249,2]
[392061936,1761133843626,-887.8427815,0.00040249,2]
[392061938,1761133843635,-3477.0,0.00040271,2]
[392061940,1761133843644,-3309.08,0.000403,14]
[392061942,1761133843653,-500.0,0.00040311,30]
[392061943,1761133843663,-201.0,0.00040396,2]
[392061945,1761133843672,-3653.73698431,0.00040404,2]
[392061946,1761133843682,-3478.0,0.00040489,120]
[392061948,1761133843692,-233.13878423,0.000405,120]
[392061949,1761133843701,-213.12273715,0.000405,120]
[392061950,1761133843711,-231.04466124,0.000405,120]
[392061951,1761133843720,-201.0,0.00040622,2]
[392061953,1761133843729,-1000.0,0.00040681,90]
[392061955,1761133843738,-244.0,0.00040681,90]
[392061956,1761133843747,-201.0,0.0004069,2]
[392061957,1761133843756,-201.0,0.0004076,7]
[392061959,1761133843765,-768.372972,0.00040848,60]
[392061961,1761133843775,-348.854513,0.00040848,60]
[392061962,1761133843783,-193.262004,0.00040848,60]
[392061964,1761133843792,-156.629309,0.00040848,60]
[392061965,1761133843801,-179.464874,0.00040848,60]
[392061966,1761133843810,-201.0,0.00040849,7]
[392061967,1761133843819,-3478.0,0.00040857,7]
[392061968,1761133843829,-500.0,0.00040859,30]
[392061969,1761133843838,-1460.14,0.000409,7]
[392061970,1761133843848,-201.0,0.00040945,120]
[392061971,1761133843856,-861.54269183,0.00041037,120]
[392061972,1761133843866,-160.0,0.00041106,4]
[392061973,1761133843875,-201.0,0.00041198,7]
[392061974,1761133843884,-15509.95,0.000412,14]
[392061975,1761133843893,-3478.0,0.00041334,2]
[392061976,1761133843902,-500.0,0.00041407,120]
[392061977,1761133843911,-3477.0,0.00041456,2]
[392061978,1761133843920,-4206.0,0.00041524,120]
[392061979,1761133843929,-3477.0,0.00041525,7]
[392061980,1761133843938,-500.0,0.00041636,30]
[392061981,1761133843947,-768.372972,0.00041668,10]
[392061982,1761133843956,-348.854513,0.00041668,10]
[392061983,1761133843965,-201.0,0.00041751,7]
[392061984,1761133843975,-233.13878423,0.000418,120]
[392061985,1761133843984,-213.12273715,0.000418,120]
[392061986,1761133843993,-231.04466124,0.000418,120]
[392061987,1761133844003,-632.0,0.00041815,2]
[392061988,1761133844014,-983.0,0.00041815,2]
[392061989,1761133844024,-2164.0,0.00041815,2]
[392061990,1761133844033,-150.0,0.00041815,2]
[392061991,1761133844043,-150.0,0.00041815,2]
[392061992,1761133844053,-150.0,0.00041815,2]
[392061993,1761133844062,-500.0,0.00041955,120]
[392061994,1761133844073,-899.73916586,0.00042037,120]
[392061995,1761133844082,-201.0,0.00042167,2]
[392061996,1761133844091,-201.0,0.00042168,7]
[392061997,1761133844100,-1578.38716712,0.00042294,2]
[392061998,1761133844110,-2398.31370747,0.00042371,28]
[392061999,1761133844122,-178.37247728,0.000424,15]
[392062000,1761133844138,-508.1021154,0.000424,15]
[392062001,1761133844149,-168.2,0.0004242,30]
[392062002,1761133844163,-201.0,0.00042432,2]
[392062003,1761133844172,-500.0,0.00042503,120]
[392062004,1761133844182,-685.99436141,0.00042572,3]
[392062005,1761133844191,-2741.2334682,0.00042572,3]
[392062006,1761133844200,-241.92542772,0.00042572,3]
[392062007,1761133844210,-202.02370346,0.00042573,5]
[392062008,1761133844219,-151.0,0.00042573,5]
[392062009,1761133844228,-500.0,0.00042573,5]
[392062010,1761133844238,-151.0,0.00042573,5]
[392062011,1761133844247,-500.0,0.00042573,5]
[392062012,1761133844258,-151.24347366,0.00042573,5]
[392062013,1761133844267,-151.0,0.00042573,5]
[392062014,1761133844279,-278.02275387,0.00042573,5]
[392062015,1761133844293,-151.18089603,0.00042573,5]
[392062016,1761133844308,-151.0,0.00042573,5]
[392062017,1761133844322,-500.0,0.00042573,5]
[392062018,1761133844333,-151.0,0.00042573,2]
[392062020,1761133844346,-151.11869044,0.00042573,5]
[392062021,1761133844360,-154.48274439,0.00042573,2]
[392062024,1761133844373,-151.0,0.00042573,5]
[392062025,1761133844387,-151.0,0.00042573,5]
[392062026,1761133844402,-165.33192921,0.00042573,5]
[392062027,1761133844416,-151.0,0.00042573,5]
[392062028,1761133844429,-181.40628429,0.00042573,5]
[392062029,1761133844441,-277.9173203,0.00042573,5]